[Event "Late-Titled-Tuesday-Blitz-September-19-2023"]
[Site "Chess.com"]
[Date "2023.09.19"]
[Round "3"]
[White "stasOR4ik"]
[Black "lluiss"]
[Result "1-0"]
[WhiteElo "2440"]
[BlackElo "2250"]
[TimeControl "180+1"]
[EndTime "14:28:06 PDT"]
[Termination "stasOR4ik won on time"]

1. e4 {[%clk 0:03:00.9]} 1... c5 {[%clk 0:02:59.2]} 2. c3 {[%clk 0:03:01.2]}
2... d5 {[%clk 0:02:58.9]} 3. exd5 {[%clk 0:03:01.2]} 3... Qxd5 {[%clk
0:02:59.8]} 4. d4 {[%clk 0:03:01.4]} 4... Nf6 {[%clk 0:02:59.5]} 5. Nf3 {[%clk
0:03:01.6]} 5... Bg4 {[%clk 0:02:59.2]} 6. Be2 {[%clk 0:03:01.5]} 6... Nc6
{[%clk 0:02:57.9]} 7. O-O {[%clk 0:03:00.9]} 7... e6 {[%clk 0:02:57]} 8. Be3
{[%clk 0:02:39]} 8... cxd4 {[%clk 0:02:57]} 9. Nxd4 {[%clk 0:02:37]} 9... Bxe2
{[%clk 0:02:55.4]} 10. Qxe2 {[%clk 0:02:30.8]} 10... Nxd4 {[%clk 0:02:50.4]} 11.
cxd4 {[%clk 0:02:27.6]} 11... Rc8 {[%clk 0:02:31.4]} 12. Nc3 {[%clk 0:02:27]}
12... Qc4 {[%clk 0:02:31.2]} 13. Qf3 {[%clk 0:02:23.6]} 13... Qc6 {[%clk
0:02:30.7]} 14. d5 {[%clk 0:02:10.5]} 14... Nxd5 {[%clk 0:02:17.1]} 15. Nxd5
{[%clk 0:02:09.8]} 15... Qxd5 {[%clk 0:02:16.6]} 16. Qxd5 {[%clk 0:02:09.6]}
16... exd5 {[%clk 0:02:16]} 17. Bxa7 {[%clk 0:02:07.1]} 17... Rc2 {[%clk
0:01:54.5]} 18. Rfe1+ {[%clk 0:02:05]} 18... Kd7 {[%clk 0:01:54.3]} 19. Rad1
{[%clk 0:02:04.6]} 19... Kc6 {[%clk 0:01:29.6]} 20. Re8 {[%clk 0:02:01.3]} 20...
Rxb2 {[%clk 0:01:21.3]} 21. g3 {[%clk 0:01:37.6]} 21... Bc5 {[%clk 0:01:14]} 22.
Rxh8 {[%clk 0:01:33.2]} 22... Bxa7 {[%clk 0:01:14]} 23. Rxh7 {[%clk 0:01:27.4]}
23... Rxf2 {[%clk 0:01:10.1]} 24. Kh1 {[%clk 0:01:26.7]} 24... g6 {[%clk
0:00:59.1]} 25. a4 {[%clk 0:01:24.2]} 25... d4 {[%clk 0:00:57.5]} 26. Rd3 {[%clk
0:01:21.3]} 26... Kd5 {[%clk 0:00:55.2]} 27. Kg1 {[%clk 0:01:15.3]} 27... Rf6
{[%clk 0:00:50]} 28. Rh8 {[%clk 0:00:49.5]} 28... Ke4 {[%clk 0:00:49.2]} 29. Rd1
{[%clk 0:00:47.2]} 29... d3+ {[%clk 0:00:49.2]} 30. Kg2 {[%clk 0:00:47.1]} 30...
Rf2+ {[%clk 0:00:48.7]} 31. Kh3 {[%clk 0:00:47.2]} 31... d2 {[%clk 0:00:46.5]}
32. Re8+ {[%clk 0:00:33.5]} 32... Kd3 {[%clk 0:00:46.7]} 33. Re7 {[%clk
0:00:17.1]} 33... Kc2 {[%clk 0:00:39.2]} 34. Rxd2+ {[%clk 0:00:17.3]} 34... Kxd2
{[%clk 0:00:37.8]} 35. Rxb7 {[%clk 0:00:17.4]} 35... Be3 {[%clk 0:00:32.7]} 36.
a5 {[%clk 0:00:16.8]} 36... Ke1 {[%clk 0:00:22.6]} 37. a6 {[%clk 0:00:16]} 37...
Ra2 {[%clk 0:00:17.5]} 38. Re7 {[%clk 0:00:12.7]} 38... Kd2 {[%clk 0:00:15.1]}
39. Rxf7 {[%clk 0:00:11]} 39... Rxa6 {[%clk 0:00:15.1]} 40. Kg4 {[%clk
0:00:11.4]} 40... Re6 {[%clk 0:00:14.2]} 41. h4 {[%clk 0:00:10.9]} 41... Ke2
{[%clk 0:00:14.4]} 42. h5 {[%clk 0:00:08.1]} 42... gxh5+ {[%clk 0:00:13.6]} 43.
Kxh5 {[%clk 0:00:09]} 43... Re5+ {[%clk 0:00:13.9]} 44. Kh4 {[%clk 0:00:07.3]}
44... Re4+ {[%clk 0:00:13.7]} 45. g4 {[%clk 0:00:07.2]} 45... Bf2+ {[%clk
0:00:13]} 46. Kh5 {[%clk 0:00:07.1]} 46... Re5+ {[%clk 0:00:13.2]} 47. Kg6
{[%clk 0:00:04.4]} 47... Be3 {[%clk 0:00:13.5]} 48. Rf5 {[%clk 0:00:03.7]} 48...
Re4 {[%clk 0:00:11]} 49. g5 {[%clk 0:00:02.5]} 49... Re6+ {[%clk 0:00:11]} 50.
Rf6 {[%clk 0:00:01.7]} 50... Re5 {[%clk 0:00:11.3]} 51. Rf5 {[%clk 0:00:02.2]}
51... Re8 {[%clk 0:00:11.6]} 52. Kf7 {[%clk 0:00:02.2]} 52... Re4 {[%clk
0:00:10]} 53. g6 {[%clk 0:00:02.7]} 53... Rg4 {[%clk 0:00:10.2]} 54. g7 {[%clk
0:00:03.2]} 54... Bd4 {[%clk 0:00:09.9]} 55. g8=Q {[%clk 0:00:03]} 55... Rxg8
{[%clk 0:00:10.6]} 56. Kxg8 {[%clk 0:00:03.6]} 56... Ke3 {[%clk 0:00:11.1]} 57.
Kf7 {[%clk 0:00:04.1]} 57... Kd3 {[%clk 0:00:10.9]} 58. Ke6 {[%clk 0:00:05]}
58... Bc3 {[%clk 0:00:10.1]} 59. Kd5 {[%clk 0:00:05.4]} 59... Bd2 {[%clk
0:00:09.7]} 60. Rf3+ {[%clk 0:00:05.3]} 60... Ke2 {[%clk 0:00:10]} 61. Rh3
{[%clk 0:00:05.3]} 61... Be1 {[%clk 0:00:10.1]} 62. Ke4 {[%clk 0:00:05.8]} 62...
Bf2 {[%clk 0:00:09.9]} 63. Rh2 {[%clk 0:00:06.1]} 63... Kf1 {[%clk 0:00:10.1]}
64. Kf3 {[%clk 0:00:06.3]} 64... Bg1 {[%clk 0:00:09.5]} 65. Rc2 {[%clk
0:00:05.8]} 65... Ke1 {[%clk 0:00:03.9]} 66. Rc1+ {[%clk 0:00:05.7]} 1-0

[Event "Late-Titled-Tuesday-Blitz-September-19-2023"]
[Site "Chess.com"]
[Date "2023.09.19"]
[Round "3"]
[White "Rodalquilar"]
[Black "Slovak_fighter2000"]
[Result "1-0"]
[WhiteElo "2743"]
[BlackElo "2451"]
[TimeControl "180+1"]
[EndTime "14:28:07 PDT"]
[Termination "Rodalquilar won on time"]

1. d4 {[%clk 0:03:00.9]} 1... Nf6 {[%clk 0:02:55.6]} 2. Nf3 {[%clk 0:03:01.2]}
2... d5 {[%clk 0:02:55]} 3. Bf4 {[%clk 0:03:01.4]} 3... c5 {[%clk 0:02:54.7]} 4.
e3 {[%clk 0:03:01.8]} 4... Nc6 {[%clk 0:02:50.1]} 5. Nbd2 {[%clk 0:03:01.8]}
5... e6 {[%clk 0:02:46.5]} 6. c3 {[%clk 0:03:00.2]} 6... Bd6 {[%clk 0:02:46.7]}
7. Bg3 {[%clk 0:03:00.2]} 7... O-O {[%clk 0:02:47.4]} 8. Bb5 {[%clk 0:03:00]}
8... cxd4 {[%clk 0:02:43.7]} 9. exd4 {[%clk 0:02:56.5]} 9... a6 {[%clk
0:02:35.4]} 10. Bd3 {[%clk 0:02:52.8]} 10... b5 {[%clk 0:02:31.4]} 11. a3 {[%clk
0:02:46.2]} 11... Ne7 {[%clk 0:02:21.5]} 12. Bxd6 {[%clk 0:02:43]} 12... Qxd6
{[%clk 0:02:21.5]} 13. Ne5 {[%clk 0:02:43.9]} 13... Ng6 {[%clk 0:02:17.1]} 14.
Ndf3 {[%clk 0:02:07.6]} 14... Ne4 {[%clk 0:02:07.3]} 15. Nxg6 {[%clk 0:01:55.5]}
15... hxg6 {[%clk 0:01:59.8]} 16. Bxe4 {[%clk 0:01:55.1]} 16... dxe4 {[%clk
0:02:00.4]} 17. Ne5 {[%clk 0:01:55.6]} 17... Bb7 {[%clk 0:01:54.9]} 18. Qg4
{[%clk 0:01:43.6]} 18... e3 {[%clk 0:01:37.6]} 19. fxe3 {[%clk 0:01:30.1]} 19...
Qd5 {[%clk 0:01:37]} 20. O-O {[%clk 0:01:30.3]} 20... Qe4 {[%clk 0:01:28.4]} 21.
Qxe4 {[%clk 0:01:28.5]} 21... Bxe4 {[%clk 0:01:29.3]} 22. Rf4 {[%clk 0:01:29.2]}
22... Bc2 {[%clk 0:01:12.5]} 23. Rc1 {[%clk 0:01:28.7]} 23... Bb3 {[%clk
0:01:02.9]} 24. Rcf1 {[%clk 0:01:28.3]} 24... Ra7 {[%clk 0:01:03.2]} 25. Nxg6
{[%clk 0:01:28.3]} 25... Rd8 {[%clk 0:00:51.7]} 26. Ne5 {[%clk 0:01:28.1]} 26...
Rf8 {[%clk 0:00:46.3]} 27. R1f3 {[%clk 0:01:23.8]} 27... f6 {[%clk 0:00:44.3]}
28. Nd3 {[%clk 0:01:23.2]} 28... Rb8 {[%clk 0:00:40.7]} 29. Nc5 {[%clk
0:01:22.7]} 29... Ba2 {[%clk 0:00:35.1]} 30. Rf1 {[%clk 0:00:54.1]} 30... a5
{[%clk 0:00:28.1]} 31. Ra1 {[%clk 0:00:49.1]} 31... Bc4 {[%clk 0:00:25.4]} 32.
b3 {[%clk 0:00:48.9]} 32... Bd5 {[%clk 0:00:21.5]} 33. e4 {[%clk 0:00:46.5]}
33... Bc6 {[%clk 0:00:21.7]} 34. Nxe6 {[%clk 0:00:44.8]} 34... Re7 {[%clk
0:00:18]} 35. Nc5 {[%clk 0:00:40.8]} 35... b4 {[%clk 0:00:11.7]} 36. axb4 {[%clk
0:00:40.7]} 36... axb4 {[%clk 0:00:12.5]} 37. c4 {[%clk 0:00:40.8]} 37... Rc8
{[%clk 0:00:08.5]} 38. Re1 {[%clk 0:00:33.4]} 38... Be8 {[%clk 0:00:08.3]} 39.
Nd3 {[%clk 0:00:30.8]} 39... Bg6 {[%clk 0:00:08.5]} 40. Nxb4 {[%clk 0:00:30.1]}
40... Rb7 {[%clk 0:00:08.5]} 41. Nd5 {[%clk 0:00:30.1]} 41... Bf7 {[%clk
0:00:06.4]} 42. Rf3 {[%clk 0:00:28]} 42... Kf8 {[%clk 0:00:05.9]} 43. g4 {[%clk
0:00:27]} 43... Ra8 {[%clk 0:00:05.6]} 44. Kg2 {[%clk 0:00:26.4]} 44... Ra2+
{[%clk 0:00:05.3]} 45. Kg3 {[%clk 0:00:26.8]} 45... Rb2 {[%clk 0:00:05.4]} 46.
Ree3 {[%clk 0:00:26.8]} 46... Rd2 {[%clk 0:00:04.7]} 47. Rd3 {[%clk 0:00:26.1]}
47... Rc2 {[%clk 0:00:04.1]} 48. h4 {[%clk 0:00:26.4]} 48... Ra7 {[%clk
0:00:04.9]} 49. g5 {[%clk 0:00:26.6]} 49... Raa2 {[%clk 0:00:04.2]} 50. gxf6
{[%clk 0:00:25.5]} 50... Rg2+ {[%clk 0:00:04.9]} 51. Kf4 {[%clk 0:00:26.1]}
51... gxf6 {[%clk 0:00:02.4]} 52. Nxf6 {[%clk 0:00:26.2]} 52... Ke7 {[%clk
0:00:03.3]} 53. Ke5 {[%clk 0:00:23.6]} 53... Rh2 {[%clk 0:00:03.1]} 54. Nd5+
{[%clk 0:00:21.3]} 54... Ke8 {[%clk 0:00:03.6]} 55. Rh3 {[%clk 0:00:14.9]} 55...
Rhg2 {[%clk 0:00:03.6]} 56. Rdf3 {[%clk 0:00:12.6]} 56... Ra6 {[%clk 0:00:01.8]}
57. Nc7+ {[%clk 0:00:11.4]} 57... Ke7 {[%clk 0:00:01.6]} 58. Nxa6 {[%clk
0:00:11.7]} 1-0

[Event "Late-Titled-Tuesday-Blitz-September-19-2023"]
[Site "Chess.com"]
[Date "2023.09.19"]
[Round "3"]
[White "ameetghasi100"]
[Black "Oleksandr_Bortnyk"]
[Result "0-1"]
[WhiteElo "2693"]
[BlackElo "3010"]
[TimeControl "180+1"]
[EndTime "14:28:10 PDT"]
[Termination "Oleksandr_Bortnyk won on time"]

1. b3 {[%clk 0:03:00.9]} 1... d5 {[%clk 0:02:58.7]} 2. Bb2 {[%clk 0:03:01.1]}
2... Bf5 {[%clk 0:02:59.5]} 3. d3 {[%clk 0:03:01.2]} 3... e6 {[%clk 0:03:00.1]}
4. Nd2 {[%clk 0:03:01.8]} 4... Nf6 {[%clk 0:03:00.5]} 5. g3 {[%clk 0:03:01.7]}
5... h6 {[%clk 0:03:01]} 6. Bg2 {[%clk 0:03:02.3]} 6... Be7 {[%clk 0:03:01.4]}
7. e4 {[%clk 0:03:01.2]} 7... Bh7 {[%clk 0:03:01.7]} 8. Ne2 {[%clk 0:02:59.6]}
8... O-O {[%clk 0:03:01.6]} 9. O-O {[%clk 0:02:56.6]} 9... c6 {[%clk 0:03:01.9]}
10. a3 {[%clk 0:02:56.5]} 10... a5 {[%clk 0:03:01.9]} 11. h3 {[%clk 0:02:48.9]}
11... Qb6 {[%clk 0:03:00.8]} 12. Kh2 {[%clk 0:02:26.8]} 12... Rd8 {[%clk
0:03:00.8]} 13. Qe1 {[%clk 0:02:19.6]} 13... a4 {[%clk 0:03:00.4]} 14. b4 {[%clk
0:02:19.2]} 14... Na6 {[%clk 0:03:00.6]} 15. Rb1 {[%clk 0:02:12.7]} 15... dxe4
{[%clk 0:02:56.5]} 16. dxe4 {[%clk 0:02:10.3]} 16... Qc7 {[%clk 0:02:55]} 17.
Nf4 {[%clk 0:01:57]} 17... b5 {[%clk 0:02:53.6]} 18. c4 {[%clk 0:01:49.3]} 18...
g5 {[%clk 0:02:39.3]} 19. Ne2 {[%clk 0:01:34.6]} 19... bxc4 {[%clk 0:02:39.1]}
20. Rc1 {[%clk 0:01:12.1]} 20... Rd3 {[%clk 0:02:37.4]} 21. Nxc4 {[%clk
0:00:59.4]} 21... Nxe4 {[%clk 0:02:32.9]} 22. Ne5 {[%clk 0:00:59.3]} 22... Rb3
{[%clk 0:02:32.5]} 23. Rxc6 {[%clk 0:00:52.7]} 23... Qd8 {[%clk 0:02:31.2]} 24.
Qc1 {[%clk 0:00:35.7]} 24... Bf6 {[%clk 0:02:17.2]} 25. Rd1 {[%clk 0:00:33.6]}
25... Qe8 {[%clk 0:02:17.6]} 26. Rc4 {[%clk 0:00:29]} 26... Rxb2 {[%clk
0:01:49.4]} 27. Qxb2 {[%clk 0:00:28.2]} 27... Nxf2 {[%clk 0:01:50.3]} 28. Bxa8
{[%clk 0:00:12.4]} 28... Nxd1 {[%clk 0:01:35.2]} 29. Qd2 {[%clk 0:00:12.3]}
29... Qxa8 {[%clk 0:01:16.7]} 30. Ng4 {[%clk 0:00:12.4]} 30... Nf2 {[%clk
0:01:09.6]} 31. Nxf2 {[%clk 0:00:08.2]} 31... h5 {[%clk 0:01:03.2]} 32. Nc3
{[%clk 0:00:06.1]} 32... Qf3 {[%clk 0:01:00.4]} 33. Nce4 {[%clk 0:00:05.6]}
33... h4 {[%clk 0:00:54.3]} 34. Nxf6+ {[%clk 0:00:04.4]} 34... Qxf6 {[%clk
0:00:55.2]} 35. gxh4 {[%clk 0:00:04.6]} 35... gxh4 {[%clk 0:00:53.4]} 36. Rg4+
{[%clk 0:00:04.8]} 36... Bg6 {[%clk 0:00:53.3]} 37. Qe3 {[%clk 0:00:03.2]} 37...
Nc7 {[%clk 0:00:52.9]} 38. Qf4 {[%clk 0:00:03.4]} 38... Qb2 {[%clk 0:00:51.7]}
39. Qf3 {[%clk 0:00:02.6]} 39... Nb5 {[%clk 0:00:48.6]} 40. Kg1 {[%clk 0:00:03]}
40... Qa1+ {[%clk 0:00:40.7]} 41. Kg2 {[%clk 0:00:03.2]} 41... Qxa3 {[%clk
0:00:40.2]} 42. Rxh4 {[%clk 0:00:03.1]} 42... Qxf3+ {[%clk 0:00:34.9]} 43. Kxf3
{[%clk 0:00:03.7]} 43... a3 {[%clk 0:00:35.8]} 44. Rc4 {[%clk 0:00:04.2]} 44...
a2 {[%clk 0:00:36.1]} 45. Rc8+ {[%clk 0:00:04.8]} 45... Kg7 {[%clk 0:00:34.2]}
46. Ra8 {[%clk 0:00:05.7]} 46... Bb1 {[%clk 0:00:34.7]} 47. Nd1 {[%clk
0:00:05.2]} 47... f5 {[%clk 0:00:31.8]} 48. Kf4 {[%clk 0:00:04.7]} 48... Kf6
{[%clk 0:00:32]} 49. Ra6 {[%clk 0:00:05.1]} 49... Nc7 {[%clk 0:00:31.5]} 50. Ra7
{[%clk 0:00:05.1]} 50... Nd5+ {[%clk 0:00:31.2]} 51. Kg3 {[%clk 0:00:04.4]}
51... Nxb4 {[%clk 0:00:28.6]} 52. Nc3 {[%clk 0:00:04.8]} 52... e5 {[%clk
0:00:29.1]} 53. h4 {[%clk 0:00:05]} 53... e4 {[%clk 0:00:22.8]} 54. Kf4 {[%clk
0:00:05.1]} 54... Nd3+ {[%clk 0:00:15.6]} 55. Ke3 {[%clk 0:00:05.5]} 55... Nc1
{[%clk 0:00:15.7]} 56. Nxa2 {[%clk 0:00:04.4]} 56... Bxa2 {[%clk 0:00:15.6]} 57.
Kd4 {[%clk 0:00:03.2]} 57... Be6 {[%clk 0:00:14.5]} 58. Ke3 {[%clk 0:00:03.1]}
58... Nd3 {[%clk 0:00:14.4]} 59. h5 {[%clk 0:00:03.5]} 59... Ne5 {[%clk
0:00:15]} 60. h6 {[%clk 0:00:03.2]} 60... Ng4+ {[%clk 0:00:15.6]} 61. Kf4 {[%clk
0:00:03.9]} 61... Nxh6 {[%clk 0:00:16.5]} 62. Ra6 {[%clk 0:00:04.5]} 62... Nf7
{[%clk 0:00:16.6]} 63. Ra1 {[%clk 0:00:05]} 63... Ne5 {[%clk 0:00:16.4]} 64. Rh1
{[%clk 0:00:05.9]} 64... Ng6+ {[%clk 0:00:17.3]} 65. Ke3 {[%clk 0:00:05.3]}
65... Bd5 {[%clk 0:00:16.9]} 66. Kd4 {[%clk 0:00:05.7]} 66... Bc6 {[%clk
0:00:16.8]} 67. Ra1 {[%clk 0:00:03.6]} 67... f4 {[%clk 0:00:16.2]} 68. Ra6
{[%clk 0:00:03.1]} 68... Ne7 {[%clk 0:00:16.9]} 69. Kc5 {[%clk 0:00:03.3]} 69...
f3 {[%clk 0:00:16.9]} 70. Kd4 {[%clk 0:00:04.2]} 70... f2 {[%clk 0:00:14.6]} 71.
Ke3 {[%clk 0:00:05.1]} 71... f1=Q {[%clk 0:00:14.6]} 0-1

[Event "Late-Titled-Tuesday-Blitz-September-19-2023"]
[Site "Chess.com"]
[Date "2023.09.19"]
[Round "3"]
[White "Aleksandar-Topalov"]
[Black "Baronessa08"]
[Result "0-1"]
[WhiteElo "2347"]
[BlackElo "2556"]
[TimeControl "180+1"]
[EndTime "14:28:24 PDT"]
[Termination "Baronessa08 won on time"]

1. b3 {[%clk 0:03:00.9]} 1... d5 {[%clk 0:02:54.6]} 2. Bb2 {[%clk 0:03:00.2]}
2... c5 {[%clk 0:02:51.3]} 3. e3 {[%clk 0:03:00.1]} 3... Nc6 {[%clk 0:02:49.1]}
4. Bb5 {[%clk 0:02:59.5]} 4... e6 {[%clk 0:02:44.1]} 5. Nf3 {[%clk 0:02:58.8]}
5... Nf6 {[%clk 0:02:44]} 6. O-O {[%clk 0:02:58.5]} 6... Bd6 {[%clk 0:02:42.8]}
7. Bxc6+ {[%clk 0:02:57.8]} 7... bxc6 {[%clk 0:02:42.6]} 8. Ne5 {[%clk
0:02:58.1]} 8... Qc7 {[%clk 0:02:41.5]} 9. f4 {[%clk 0:02:58.2]} 9... a5 {[%clk
0:02:40.7]} 10. a4 {[%clk 0:02:57.5]} 10... Rb8 {[%clk 0:02:30.2]} 11. d3 {[%clk
0:02:55.1]} 11... Ba6 {[%clk 0:02:23.4]} 12. Nd2 {[%clk 0:02:54.8]} 12... O-O
{[%clk 0:01:52.1]} 13. Rf3 {[%clk 0:02:54.7]} 13... Ne8 {[%clk 0:01:36.9]} 14.
Rg3 {[%clk 0:02:50]} 14... f6 {[%clk 0:01:33]} 15. Nef3 {[%clk 0:02:30.3]} 15...
e5 {[%clk 0:01:15.8]} 16. fxe5 {[%clk 0:02:29.1]} 16... fxe5 {[%clk 0:01:13.7]}
17. e4 {[%clk 0:02:27.7]} 17... Qf7 {[%clk 0:00:55]} 18. Qe2 {[%clk 0:02:25.2]}
18... d4 {[%clk 0:00:44]} 19. Rf1 {[%clk 0:02:11.3]} 19... Nf6 {[%clk
0:00:40.7]} 20. Nh4 {[%clk 0:02:04.9]} 20... Qh5 {[%clk 0:00:18]} 21. Qxh5
{[%clk 0:01:49.7]} 21... Nxh5 {[%clk 0:00:18.9]} 22. Rgf3 {[%clk 0:01:50]} 22...
Rxf3 {[%clk 0:00:18.2]} 23. Rxf3 {[%clk 0:01:46.8]} 23... Nf4 {[%clk 0:00:18.2]}
24. Nf5 {[%clk 0:01:40]} 24... Bf8 {[%clk 0:00:18]} 25. g3 {[%clk 0:01:37.6]}
25... Ne2+ {[%clk 0:00:13.5]} 26. Kf2 {[%clk 0:01:33.5]} 26... Nc3 {[%clk
0:00:14.4]} 27. Bxc3 {[%clk 0:01:28]} 27... dxc3 {[%clk 0:00:15.3]} 28. Nc4
{[%clk 0:01:18.9]} 28... Rxb3 {[%clk 0:00:14]} 29. Nxa5 {[%clk 0:00:56.9]} 29...
Rb2 {[%clk 0:00:11.4]} 30. Ne3 {[%clk 0:00:57]} 30... Bxd3 {[%clk 0:00:09.1]}
31. Nxc6 {[%clk 0:00:40.8]} 31... Bxe4 {[%clk 0:00:08.8]} 32. Nxe5 {[%clk
0:00:34.6]} 32... Bxf3 {[%clk 0:00:07.4]} 33. Kxf3 {[%clk 0:00:35.1]} 33... g6
{[%clk 0:00:05.5]} 34. N5c4 {[%clk 0:00:34.6]} 34... Ra2 {[%clk 0:00:04.8]} 35.
a5 {[%clk 0:00:35.1]} 35... Bh6 {[%clk 0:00:03.6]} 36. Ke4 {[%clk 0:00:32.9]}
36... Kf7 {[%clk 0:00:02.5]} 37. Kd3 {[%clk 0:00:32.5]} 37... Ke6 {[%clk
0:00:02]} 38. Kxc3 {[%clk 0:00:32.7]} 38... Bxe3 {[%clk 0:00:01.4]} 39. Nxe3
{[%clk 0:00:31.6]} 39... Ra3+ {[%clk 0:00:01.3]} 40. Kd2 {[%clk 0:00:31.1]}
40... Rxa5 {[%clk 0:00:02]} 41. Kd3 {[%clk 0:00:28.8]} 41... Ra1 {[%clk
0:00:02.2]} 42. Ke4 {[%clk 0:00:20.8]} 42... Kd6 {[%clk 0:00:02.4]} 43. c4
{[%clk 0:00:19.9]} 43... Ke6 {[%clk 0:00:02.7]} 44. h4 {[%clk 0:00:19.9]} 44...
Ra3 {[%clk 0:00:02.7]} 45. Kf4 {[%clk 0:00:18.9]} 45... Rc3 {[%clk 0:00:02.8]}
46. Ke4 {[%clk 0:00:19.3]} 46... Rc1 {[%clk 0:00:03.3]} 47. Kf4 {[%clk
0:00:19.5]} 47... Re1 {[%clk 0:00:03.6]} 48. Ke4 {[%clk 0:00:17.6]} 48... h6
{[%clk 0:00:04.1]} 49. Kf4 {[%clk 0:00:17.4]} 49... Re2 {[%clk 0:00:04.3]} 50.
Kf3 {[%clk 0:00:17]} 50... Ra2 {[%clk 0:00:04.4]} 51. Ke4 {[%clk 0:00:17]} 51...
Ra3 {[%clk 0:00:04.7]} 52. Kf4 {[%clk 0:00:16.9]} 52... Kf6 {[%clk 0:00:04.9]}
53. Ke4 {[%clk 0:00:15.6]} 53... g5 {[%clk 0:00:05.1]} 54. h5 {[%clk 0:00:15]}
54... Ke6 {[%clk 0:00:04.9]} 55. g4 {[%clk 0:00:14.6]} 55... Ra1 {[%clk
0:00:04.6]} 56. Nf5 {[%clk 0:00:14.4]} 56... Re1+ {[%clk 0:00:04.8]} 57. Kd3
{[%clk 0:00:13.7]} 57... Rd1+ {[%clk 0:00:05]} 58. Ke3 {[%clk 0:00:13.7]} 58...
Rc1 {[%clk 0:00:05.2]} 59. Kd3 {[%clk 0:00:13.8]} 59... Kf6 {[%clk 0:00:04.3]}
60. Nxh6 {[%clk 0:00:12.5]} 60... Rg1 {[%clk 0:00:04.6]} 61. Ke4 {[%clk
0:00:11.1]} 61... Rd1 {[%clk 0:00:04.8]} 62. Nf5 {[%clk 0:00:09.6]} 62... Rd2
{[%clk 0:00:04.5]} 63. h6 {[%clk 0:00:08.3]} 63... Rd1 {[%clk 0:00:03.7]} 64.
Ne3 {[%clk 0:00:06.7]} 64... Rh1 {[%clk 0:00:03.3]} 65. Nf5 {[%clk 0:00:06.8]}
65... Kg6 {[%clk 0:00:03.5]} 66. Kd5 {[%clk 0:00:06.8]} 66... Rg1 {[%clk
0:00:03.7]} 67. Ne3 {[%clk 0:00:04.2]} 67... Re1 {[%clk 0:00:03.4]} 68. Nf5
{[%clk 0:00:01.6]} 68... Rg1 {[%clk 0:00:03.6]} 0-1